Cogmind - Beta 15 @@@ ROGUE MODE // 2025.08.01 @ 19:11:49 Player: GiggleBox Result: Destroyed by G-67 Veteran with Plasma Rifle Performance ------------- Evolutions (6) 3000 Regions Visited (14) 2800 Robots Destroyed (240) 1200 Value Destroyed (8524) 8524 Prototype IDs (26) 520 Alien Tech Used (0) 0 Bonus (4047) 4047 TOTAL SCORE: 20091 Bonus ------- High Alert Combat Kills 1375 Follower Combat Kills 1324 Registered with UFD 300 Built Enhanced Grunts 300 A7 Reached Mainframe 300 Met R17 at Cetus 500 Friendly Fire -52 Cogmind --------- Core Integrity 0/1150 Matter 284/300 Energy 100/100 System Corruption 1% Temperature Cool (24) Movement Core (50) Location -4/Armory Parts ------- > --- POWER (2) -------- (None) > --- PROPULSION (5) --- (None) > --- UTILITY (8) ------ Advanced Signal Interpreter Armor Integrity Analyzer > --- WEAPON (4) ------- (None) > --- INVENTORY (5) ---- Advanced Heat Sink Thermic Laser Wave Gun Heavy Plasma Cannon KE Penetrator Peak State ------------ > --- POWER ------------ Angular Momentum Engine Quantum Reactor > --- PROPULSION ------- Improved Medium Treads Centrium Heavy Treads Centrium Heavy Treads > --- UTILITY ---------- Cooling System High-capacity Storage Unit Experimental Sensor Array Advanced Signal Interpreter Armor Integrity Analyzer Centrium Medium Armor Plating > --- WEAPON ----------- Advanced Variable Charge Gun KE Penetrator KE Penetrator Advanced KE Penetrator > --- INVENTORY -------- Improved Deuterium Engine Armored Medium Treads Biometal Medium Treads Biometal Medium Treads Cooling System High-capacity Storage Unit High-capacity Matter Pod Centrium Medium Armor Plating Centrium Medium Armor Plating Force Field Thermic Laser Thermic Laser Advanced Variable Charge Gun Advanced Variable Charge Gun Heavy Plasma Cannon Heavy Plasma Cannon Bore Cannon Bore Cannon Improved Proton Missile Launcher Power Sword [Rating: 123] Favorites ----------- Power Heavy Ion Engine Engine Heavy Ion Engine Power Core Reinforced Fission Core Reactor Quantum Reactor Propulsion Light Treads Treads Light Treads Wheel Armored Wheel Utility High-capacity Storage Unit Device Cooling System Storage High-capacity Storage Unit Processor Advanced Signal Interpreter Hackware Hacking Suite Protection Hardened Light Armor Plating Weapon Spread Laser Energy Gun Spread Laser Energy Cannon Heavy Plasma Cannon Ballistic Gun KE Penetrator Ballistic Cannon Bore Cannon Launcher Improved Proton Missile Launcher Special Weapon Plasma Cutter Impact Weapon Heavy Hammer Slashing Weapon Power Sword Build | -11 -10 -10 -9 -9 -9 -9 -6 -6 -6 -6 -6 -5 -4 -4 ------- Run | Yrd Mat Min Mat Sto Rec Scr Fac Ext Cet Arc Hub Fac Fac Arm Slots Evolved 12 | . . . 2 . . . 6 . . . . 2 2 . Power 1 | . . . . . . . 1 . . . . . . . Propulsion 3 | . . . 1 . . . 2 . . . . . . . Utility 6 | . . . 1 . . . 2 . . . . 1 2 . Weapon 2 | . . . . . . . 1 . . . . 1 . . Parts Attached 128 | 8 4 . 24 18 5 3 9 12 9 1 4 19 10 2 Power 14 | 1 . . 2 1 . . 2 2 1 . 1 3 1 . Engine 11 | 1 . . 2 1 . . 2 2 . . 1 1 1 . Core 1 | . . . . . . . . . . . . 1 . . Reactor 2 | . . . . . . . . . 1 . . 1 . . Propulsion 42 | 2 . . 12 9 3 2 2 2 2 . . 6 2 . Treads 39 | 2 . . 12 9 3 . 1 2 2 . . 6 2 . Leg . | . . . . . . . . . . . . . . . Wheel 3 | . . . . . . 2 1 . . . . . . . Hover . | . . . . . . . . . . . . . . . Flight . | . . . . . . . . . . . . . . . Utility 31 | 2 3 . 4 2 2 1 3 2 2 1 . 5 3 1 Device 13 | 1 . . 2 . . 1 2 1 . 1 . 2 2 1 Storage 4 | 1 2 . . 1 . . . . . . . . . . Processor 3 | . . . . . . . 1 . 1 . . 1 . . Hackware 1 | . . . . . 1 . . . . . . . . . Protection 10 | . 1 . 2 1 1 . . 1 1 . . 2 1 . Artifact . | . . . . . . . . . . . . . . . Weapon 41 | 3 1 . 6 6 . . 2 6 4 . 3 5 4 1 Energy Gun 16 | 1 1 . 2 3 . . 2 1 2 . 1 2 . 1 Energy Cannon 5 | . . . . 1 . . . 2 . . . . 2 . Ballistic Gun 11 | 2 . . 1 1 . . . 2 1 . 1 2 1 . Ballistic Cannon 3 | . . . . . . . . 1 1 . . . 1 . Launcher 2 | . . . . 1 . . . . . . 1 . . . Special Weapon 2 | . . . 2 . . . . . . . . . . . Impact Weapon 1 | . . . 1 . . . . . . . . . . . Slashing Weapon 1 | . . . . . . . . . . . . 1 . . Piercing Weapon . | . . . . . . . . . . . . . . . Special Melee Weapon . | . . . . . . . . . . . . . . . Unidentified Prototypes 7 | . . . . 2 . . . . 4 . . . 1 . Parts Lost 41 | . . . 3 2 . . . 3 . 1 2 13 15 2 Power 8 | . . . . 1 . . . 1 . . 1 3 2 . Propulsion 11 | . . . 1 . . . . 1 . . 1 3 4 1 Utility 13 | . . . 1 1 . . . 1 . 1 . 3 5 1 Weapon 9 | . . . 1 . . . . . . . . 4 4 . Highest Loss Streak 12 | . . . 1 1 . . . 2 . 1 1 7 12 1 To Critical Strikes 2 | . . . 1 . . . . . . . . 1 . . Average Backups 18 | 2 13 17 19 19 19 19 17 19 19 19 19 16 16 10 Power . | . 1 1 1 . 1 1 . . 1 1 . 1 . . Propulsion 3 | . 1 3 3 5 5 5 3 3 . 1 1 1 . . Utility 6 | . 4 6 7 8 7 7 6 6 7 7 7 5 4 3 Weapon 7 | . 4 6 6 5 6 6 7 9 9 9 10 9 10 7 Tool/Special . | . . . . . . . . . . . . . . . Unused Backups 22 | . 1 . 5 3 . 1 . 3 4 . . 1 . 4 Power 3 | . . . 2 . . . . 1 . . . . . . Propulsion 4 | . 1 . 1 . . . . . 1 . . 1 . . Utility 8 | . . . 2 1 . 1 . 1 1 . . . . 2 Weapon 7 | . . . . 2 . . . 1 2 . . . . 2 Tool/Special . | . . . . . . . . . . . . . . . Average Slot Usage (%) 97 | . 100 100 99 99 100 100 99 99 93 86 86 89 95 65 Engine 10 | . 14 14 11 10 11 11 12 12 6 6 6 3 4 . Treads 28 | . 28 28 32 33 33 31 16 28 27 20 20 21 24 12 Wheel 1 | . . . . . . 1 16 4 . . . . . . Device 10 | . 8 . 11 11 11 11 13 13 6 6 6 8 14 12 Storage 9 | . 14 14 11 11 11 11 6 6 6 6 6 5 5 4 Processor 3 | . . . . . . . 5 6 12 13 13 11 14 10 Protection 8 | . 5 14 11 10 5 11 6 6 6 6 6 6 4 4 Energy Gun 15 | . 13 14 21 21 22 22 15 9 . . 4 4 1 4 Energy Cannon 1 | . . . . . . . . 5 5 6 . 1 4 . Ballistic Gun 2 | . 14 14 . . . . . 1 . . 8 10 6 2 Ballistic Cannon 1 | . . . . . . . . 3 12 13 4 1 2 3 Peak Build Rating 123 | 7 11 11 18 22 20 22 47 63 106 103 109 123 112 91 Average Rating 38 | 5 10 11 17 19 19 19 43 50 85 100 104 108 105 72 On Entrance 45 | . 7 11 11 18 19 19 22 46 60 103 100 103 97 66 Naked Turns . | . . . . . . . . . . . . . . . Heaviest Build 117 | 14 55 55 61 63 63 63 79 98 106 107 107 117 110 106 Greatest Support 190 | 40 40 40 60 60 60 60 40 115 190 190 190 190 148 86 Greatest Overweight (x) 3 | . 1 1 1 1 1 2 3 2 . . . . 1 1 Average Overweight (x) . | . . 1 . 1 . 1 2 . . . . . . . Largest Inventory Capacity 20 | 8 20 20 20 20 20 20 20 20 20 20 20 20 20 20 Average Capacity 19 | 7 16 20 20 20 20 20 20 20 20 20 20 20 20 17 Most Carried 20 | 3 17 18 20 20 20 20 20 20 20 20 20 20 19 13 Average Carried 18 | 2 13 17 19 19 19 19 17 19 19 19 19 16 16 11 Final Capacity 20 | 8 20 20 20 20 20 20 20 20 20 20 20 20 20 5 Final Carried 20 | 2 17 18 20 20 19 20 20 19 19 20 19 17 13 5 Class Distribution -------------------- 62% | Mutant 13% | Scavenger-Tank 7% | Scavenger-Mutant 4% | Scavenger-Gunner 3% | Commander-Skirmisher 3% | Scavenger-Skirmisher Dominant Class ---------------- Mutant | -10/Materials Mutant | -10/Mines Mutant | -9/Materials Mutant | -9/Storage Scavenger-Mutant | -9/Recycling Mutant | -9/Scraptown Mutant | -6/Factory Commander-Skirmisher | -6/Extension Scavenger-Tank | -6/Cetus Scavenger-Tank | -6/Archives Scavenger-Tank | -6/Hub_04(d) Scavenger-Tank | -5/Factory Scavenger-Gunner | -4/Factory Scavenger-Skirmisher | -4/Armory Resources | -11 -10 -10 -9 -9 -9 -9 -6 -6 -6 -6 -6 -5 -4 -4 ----------- Run | Yrd Mat Min Mat Sto Rec Scr Fac Ext Cet Arc Hub Fac Fac Arm Matter Collected 4613 | 326 222 27 385 374 50 10 81 689 164 250 985 497 492 61 Remotely . | . . . . . . . . . . . . . . . Salvage Created 9676 | 91 455 60 1283 1412 138 . 218 833 359 135 2327 1389 852 124 Parts 518 | 5 26 6 96 73 14 . 17 38 13 5 108 77 36 4 Haulers Intercepted 17 | . 2 . 6 6 . . 1 . . . 1 1 . . Recyclers Shooed 9 | . 3 . 2 1 2 . . . . . . . 1 . Parts Field Recycled . | . . . . . . . . . . . . . . . Retrieved Matter . | . . . . . . . . . . . . . . . Parts Self-Destructed . | . . . . . . . . . . . . . . . Prevented . | . . . . . . . . . . . . . . . Kills | -11 -10 -10 -9 -9 -9 -9 -6 -6 -6 -6 -6 -5 -4 -4 ------- Run | Yrd Mat Min Mat Sto Rec Scr Fac Ext Cet Arc Hub Fac Fac Arm Combat Hostiles Destroyed 163 | . 11 3 29 27 3 . 1 15 6 1 32 20 13 2 Melee 3 | . . . . . . . . . . . . 1 1 1 Guns 116 | . 11 3 29 27 3 . 1 7 . . 16 17 1 1 Cannons 18 | . . . . . . . . 7 6 1 1 . 3 . AOE 22 | . . . . . . . . . . . 15 2 5 . Classes Destroyed 21 | 2 4 1 4 . 1 . 1 2 . . 2 3 . 1 Worker 19 | . . . 3 2 . . 1 2 . . 8 3 . . Builder 7 | . . . . . 1 . 1 1 . . 2 1 1 . Tunneler 2 | 2 . . . . . . . . . . . . . . Hauler 17 | . 2 . 6 6 . . 1 . . . 1 1 . . Recycler 12 | 1 2 . 2 3 1 . 1 . . . 1 1 . . Operator 8 | . . . 3 2 . . 1 . . 2 . . . . Watcher 12 | . 2 . 5 2 . . 1 1 . . 1 . . . Swarmer 27 | . 9 1 7 . . . . . . . 2 4 4 . Saboteur 1 | . . . . . . . . . . . . 1 . . Grunt 61 | . . 2 12 14 . . . 4 . . 22 4 2 1 Brawler 2 | . . . . . . . . . . . . 2 . . Duelist 4 | . . . 1 1 . . . 1 . . 1 . . . Protector 1 | . . . . . . . . . . . . 1 . . Sentry 37 | . . . 9 12 3 . . 5 . 1 1 3 3 . Demolisher 1 | . . . . . . . . . . . . . . 1 Specialist 2 | . . . . . . . . . . . 2 . . . Hunter 9 | . . . . . . . . 2 . . 2 3 2 . Programmer 8 | . . . . . . . 1 2 . . 1 2 2 . Heavy 1 | . . . . . . . . . . . 1 . . . Behemoth 1 | . . . . . . . . 1 . . . . . . Cetus Guard 6 | . . . . . . . . . 6 . . . . . Subdweller 2 | . 2 . . . . . . . . . . . . . Best Kill Streak 12 | 1 4 1 7 6 2 . 2 5 4 1 9 12 7 1 Combat Bots Only 7 | . 3 1 4 3 1 . 1 5 4 1 7 7 6 1 Max Kills in Single Turn 4 | 1 3 1 3 2 1 . 1 2 1 1 4 4 2 1 Gunslinging 2 | . 1 . . 1 . . . 1 . . 1 2 . . Exploded 3 | . . . . . . . . . . . 3 1 2 . Melee 1 | . . . . . . . . . . . . 1 1 1 Uniques/NPCs Destroyed . | . . . . . . . . . . . . . . . Combat | -11 -10 -10 -9 -9 -9 -9 -6 -6 -6 -6 -6 -5 -4 -4 -------- Run | Yrd Mat Min Mat Sto Rec Scr Fac Ext Cet Arc Hub Fac Fac Arm Hostile Shots Fired 1157 | . 27 16 82 94 8 . 13 136 18 3 215 233 225 87 Missed 391 | . 10 6 17 32 4 . 4 56 5 . 92 51 85 29 Hits 766 | . 17 10 65 62 4 . 9 80 13 3 123 182 140 58 Melee 5 | . . . 3 . . . . . . . . . . 2 Projectile 761 | . 17 10 62 62 4 . 9 80 13 3 123 182 140 56 AOE 2 | . . . . . . . . . . . . . . 2 Critical Strikes 46 | . . 2 7 3 . . 2 3 2 . 4 11 8 4 Part Disruptions 1 | . . . . . . . . . . . . . 1 . Damage Taken 12939 | . 223 120 897 829 58 . 111 1012 283 118 1885 3465 2711 1227 Core 1858 | . 106 32 30 67 . . . 90 . . 143 228 180 982 Absorbed by Shields 325 | . . . . . . . . 100 67 . . 39 119 . Reduced by Siege Mode 264 | . . . . . . . . . . . 50 214 . . Core Remaining (%) 73 | 100 . 44 . . . 75 . . . . 72 77 . . Volleys Fired 468 | 12 28 9 79 81 6 . 16 45 15 4 83 50 39 1 Largest 4 | 2 2 2 2 2 2 . 3 3 2 3 3 4 3 3 Hottest 480 | 40 85 85 130 130 130 . 195 228 240 186 240 480 173 248 Shots Fired 1008 | 24 56 18 157 153 12 . 42 132 26 12 176 140 57 3 Gun 794 | 24 56 18 156 149 12 . 42 67 3 . 115 129 20 3 Cannon 180 | . . . . 2 . . . 65 23 12 41 9 28 . Launcher 33 | . . . . 2 . . . . . . 20 2 9 . Special 1 | . . . 1 . . . . . . . . . . . Kinetic 349 | 24 28 9 9 . . . . 28 23 8 126 74 20 . Thermal 585 | . 28 9 148 131 12 . 30 104 3 4 30 64 19 3 Explosive 2 | . . . . 2 . . . . . . . . . . Electromagnetic 72 | . . . . 20 . . 12 . . . 20 2 18 . Robot Hit Streak 55 | 9 14 8 22 29 55 . 9 10 10 11 15 25 11 1 Robot Miss Streak 12 | 4 12 3 5 7 2 . 3 7 3 1 8 3 2 1 Penetration Max 2 | . . . . . . . . 2 . . 1 1 1 . Secondary Targets 15 | . 1 . . 4 . . . 1 . . 1 8 . . Max Gunslinging Chain 2 | . 1 . . 1 . . . 1 . . 1 2 . . Shots Hit Robots 778 | 16 41 13 136 136 12 . 32 95 17 8 114 114 42 2 Core Hits 762 | 6 50 12 195 175 19 . 39 93 9 4 82 54 22 2 Critical Kills 22 | . . . . . . . . 4 6 . 8 3 1 . Critical Parts Destroyed 28 | 1 . . . . . . . 4 3 1 13 5 1 . Critical Strikes 54 | 1 . . . . . . . 11 9 2 21 8 2 . Burn 2 | . . . . . . . . 2 . . . . . . Meltdown 1 | . . . . . . . . 1 . . . . . . Destroy 51 | 1 . . . . . . . 8 9 2 21 8 2 . Melee Attacks 37 | . . . 4 2 . . 7 . . . . 8 12 4 Impact 13 | . . . 4 2 . . 7 . . . . . . . Slashing 24 | . . . . . . . . . . . . 8 12 4 Piercing . | . . . . . . . . . . . . . . . Sneak Attacks 1 | . . . . . . . . . . . . . . 1 Combat Hostiles . | . . . . . . . . . . . . . . . Follow-up Attacks . | . . . . . . . . . . . . . . . Damage Inflicted 21759 | 181 668 179 2169 2466 290 . 648 2377 438 280 5307 3814 2799 143 Guns 13747 | 181 618 173 2133 2413 227 . 648 947 . . 2608 3342 417 40 Cannons 4007 | . . . . . . . . 1417 438 254 598 84 1216 . Explosions 3544 | . . . . 36 . . . . . . 2088 299 1121 . Melee 226 | . . . . . . . . . . . . 84 45 97 Ramming 235 | . 50 6 36 17 63 . . 13 . 26 13 5 . 6 Kinetic 6323 | 181 195 54 104 . . . . 507 438 112 2459 1856 417 . Thermal 11289 | . 423 119 2029 1936 227 . 482 1857 . 142 1042 1691 1301 40 Explosive . | . . . . . . . . . . . . . . . Electromagnetic 3686 | . . . . 513 . . 166 . . . 1793 178 1036 . Impact . | . . . . . . . . . . . . . . . Slashing 226 | . . . . . . . . . . . . 84 45 97 Piercing . | . . . . . . . . . . . . . . . Highest Corruption 5 | . . . . . . . 3 5 5 5 5 1 1 1 Average Corruption 3 | . . . . . . . 2 4 5 5 5 1 1 1 Corruption Purged . | . . . . . . . . . . . . . . . Corruption Blocked . | . . . . . . . . . . . . . . . Effects 103 | . . . . . . . 7 49 16 2 23 3 1 2 Message Errors 26 | . . . . . . . 3 12 5 . 5 . . 1 Matter Fused 21 | . . . . . . . . 10 6 2 1 1 . 1 Heat Flow Errors 14 | . . . . . . . 2 7 2 . 2 . 1 . Energy Discharges 10 | . . . . . . . 1 6 . . 1 2 . . Parts Rejected 1 | . . . . . . . . . . . 1 . . . Parts Fused 1 | . . . . . . . . 1 . . . . . . Data Loss (minor) 13 | . . . . . . . 1 6 1 . 5 . . . Data Loss (major) 7 | . . . . . . . . 3 1 . 3 . . . Misfires 3 | . . . . . . . . 2 . . 1 . . . Weapon Failures 7 | . . . . . . . . 2 1 . 4 . . . Overload Shots 21 | . . . . . . . . . 3 . 1 2 15 . Overflow Damage 241 | . . . . . . . . 10 . 1 9 39 182 . Projectiles 132 | . . . . . . . . 10 . . 9 . 113 . Explosions 108 | . . . . . . . . . . . . 39 69 . Melee 1 | . . . . . . . . . . 1 . . . . Knockbacks 12 | . 1 . . . 1 . . 3 . . 5 2 . . Impact 4 | . 1 . . . 1 . . 1 . . 1 . . . Kinetic 8 | . . . . . . . . 2 . . 4 2 . . Secondary . | . . . . . . . . . . . . . . . Self-Inflicted Damage 167 | . . . . . . . . . . . 35 . 129 3 Shots 9 | . . . . . . . . . . . 4 . 5 . Rammed 30 | . 7 1 6 4 6 . . 2 . 1 1 . . 2 Targets Rammed 37 | . 7 1 8 5 8 . . 2 . 2 1 1 . 2 Kicked . | . . . . . . . . . . . . . . . Crushed 7 | . . . 2 1 2 . . . . 1 . 1 . . Highest Temperature 423 | . 168 135 162 90 24 . 196 355 122 54 423 411 272 . Average Temperature 62 | . 49 64 39 26 9 . 82 106 44 28 75 88 140 . Received Heat Transfer 3292 | . 21 90 381 366 9 . 9 334 31 9 612 872 401 157 Effects 4 | . . . . . . . . 3 . . 1 . . . Shutdowns 1 | . . . . . . . . . . . 1 . . . Interference 2 | . . . . . . . . 2 . . . . . . Short Circuit 1 | . . . . . . . . 1 . . . . . . Siege Activations 6 | . . . . . . . . . . . 5 1 . . Total Turns 211 | . . . . . . . . . . . 126 85 . . Longest Duration 85 | . . . . . . . . . . . 47 85 . . Martial Activations . | . . . . . . . . . . . . . . . Shielding Activations . | . . . . . . . . . . . . . . . Robots Disrupted . | . . . . . . . . . . . . . . . Combat Hostiles . | . . . . . . . . . . . . . . . Robots Corrupted 2 | . . . . . . . . . . 1 . . 1 . Combat Hostiles 1 | . . . . . . . . . . . . . 1 . Parts Fried 19 | . . . . 1 . . . . . 3 9 2 4 . Impact Corruptions 1 | . . . . . . . . . . 1 . . . . Robots Melted 3 | . . . . . . . . 1 . . . . 2 . Combat Hostiles 3 | . . . . . . . . 1 . . . . 2 . Parts Melted 21 | . 2 . 1 . . . 1 7 . . 1 4 5 . Heat Transferred 14239 | . 510 155 2500 2405 295 . 585 2870 . 200 1277 1945 1460 37 Parts Sabotaged . | . . . . . . . . . . . . . . . Parts Stolen . | . . . . . . . . . . . . . . . Parts Stripped . | . . . . . . . . . . . . . . . Power Chain Reactions 12 | . . . . 1 . . . . . . 6 . 5 . Alert | -11 -10 -10 -9 -9 -9 -9 -6 -6 -6 -6 -6 -5 -4 -4 ------- Run | Yrd Mat Min Mat Sto Rec Scr Fac Ext Cet Arc Hub Fac Fac Arm Maximum Alert Level 4 | . . . 1 1 . . . 3 2 1 4 3 2 . Low Security (%) 72 | 100 100 100 84 88 100 . 100 81 . 11 5 . . 100 Level 1 11 | . . . 15 11 . . . 5 51 88 2 . 86 . Level 2 8 | . . . . . . . . 7 48 . 17 64 13 . Level 3 4 | . . . . . . . . 4 . . 31 35 . . Level 4 2 | . . . . . . . . . . . 43 . . . Level 5 . | . . . . . . . . . . . . . . . High Security . | . . . . . . . . . . . . . . . Max Security . | . . . . . . . . . . . . . . . Peak Influence 1330 | 5 70 95 256 220 94 . 30 706 476 280 1330 827 425 182 Initial 645 | . . . 15 55 74 . . . 389 152 80 645 387 182 Average 189 | . 15 25 121 111 13 . 2 110 398 237 922 652 358 103 Influence Increases 7357 | 15 280 125 940 905 240 . 91 1173 362 198 1752 674 405 197 Destroy 0b10 Robot/C 3840 | . 180 60 580 540 60 . 20 580 160 80 880 380 260 60 Destroy 0b10 Robot/NC 435 | 15 30 . 95 75 10 . 30 35 10 10 85 35 5 . Destroy Leader 932 | . 38 20 182 196 . . 14 86 . . 224 92 60 20 Allied During Kill 920 | . . . . . . . . 362 125 90 305 . . 38 Successful Hack 215 | . 32 . 20 20 20 . 6 91 11 . 15 . . . Select Force Hacks 150 | . . . . . 150 . . . . . . . . . Disable Machine 300 | . . . 15 30 . . 15 . 45 15 90 60 15 15 Destroy Structure 265 | . . . 3 14 . . 6 19 11 3 63 92 50 4 Lose Combat Pursuer 300 | . . 45 45 30 . . . . . . 90 15 15 60 Influence Decreases 7324 | 15 280 84 848 846 432 . 91 477 677 349 664 1201 824 536 Entered New Map 2175 | . . . 26 78 118 . . . 307 229 150 673 404 190 Time Decay 3992 | 15 280 84 642 627 314 . 91 311 310 70 374 398 270 206 Lost Part 390 | . . . 30 20 . . . 10 . 10 20 130 150 20 Lost Ally 496 | . . . . . . . . 156 60 40 120 . . 120 Purge Threat 271 | . . . 150 121 . . . . . . . . . . Squads Dispatched 41 | . . . 2 4 . . 3 5 . . 20 4 3 . Investigation 7 | . . . . 2 . . 1 2 . . 2 . . . Extermination 4 | . . . . . . . 1 . . . 1 1 1 . Reinforcement 18 | . . . 2 2 . . 1 2 . . 8 1 2 . Assault 3 | . . . . . . . . 1 . . . 2 . . Garrison 9 | . . . . . . . . . . . 9 . . . Intercept . | . . . . . . . . . . . . . . . Searches Triggered . | . . . . . . . . . . . . . . . Construction Impeded 5 | . . . . . . . . 1 . . 2 1 1 . Haulers Reinforced 3 | . . . . . . . . . . . 3 . . . Active Scanning Responses . | . . . . . . . . . . . . . . . Cargo Convoy Interrupts . | . . . . . . . . . . . . . . . Stealth | -11 -10 -10 -9 -9 -9 -9 -6 -6 -6 -6 -6 -5 -4 -4 --------- Run | Yrd Mat Min Mat Sto Rec Scr Fac Ext Cet Arc Hub Fac Fac Arm Distress Signals 22 | . 1 . 4 2 . . . 3 2 1 3 1 3 2 Communications Jammed . | . . . . . . . . . . . . . . . Distress Signals . | . . . . . . . . . . . . . . . Times Spotted 293 | . 16 6 43 31 3 . 7 37 8 3 56 30 26 27 Peak Tracking Total 21 | . 4 3 8 4 1 . 2 7 5 1 6 9 10 21 Tactical Retreats 16 | . 1 2 2 2 . . . . . . 5 1 1 2 Traps | -11 -10 -10 -9 -9 -9 -9 -6 -6 -6 -6 -6 -5 -4 -4 ------- Run | Yrd Mat Min Mat Sto Rec Scr Fac Ext Cet Arc Hub Fac Fac Arm Traps Triggered 7 | . 1 . . 1 . . . 1 . . 1 . 3 . Indirectly 3 | . . . . . . . . . . . . . 3 . Trap Hack Attempts . | . . . . . . . . . . . . . . . Triggered . | . . . . . . . . . . . . . . . Disarmed . | . . . . . . . . . . . . . . . Reprogrammed . | . . . . . . . . . . . . . . . Reused . | . . . . . . . . . . . . . . . Traps Extracted . | . . . . . . . . . . . . . . . Installed . | . . . . . . . . . . . . . . . Triggered . | . . . . . . . . . . . . . . . Machines | -11 -10 -10 -9 -9 -9 -9 -6 -6 -6 -6 -6 -5 -4 -4 ---------- Run | Yrd Mat Min Mat Sto Rec Scr Fac Ext Cet Arc Hub Fac Fac Arm Machines Disabled 22 | . . . 1 2 . . 1 2 3 1 6 4 1 1 Max in Single Turn 3 | . . . 1 1 . . 1 2 1 1 2 3 1 1 Machines Repaired . | . . . . . . . . . . . . . . . Machines Dismantled 1 | . . . 1 . . . . . . . . . . . Machines Sabotaged . | . . . . . . . . . . . . . . . Overloaded Fab Kills . | . . . . . . . . . . . . . . . Hacking | -11 -10 -10 -9 -9 -9 -9 -6 -6 -6 -6 -6 -5 -4 -4 --------- Run | Yrd Mat Min Mat Sto Rec Scr Fac Ext Cet Arc Hub Fac Fac Arm Machines Accessed 69 | . 9 . 11 8 11 4 5 10 2 . 6 2 . 1 Terminals 55 | . 8 . 10 7 6 . 5 10 2 . 5 1 . 1 Fabricators 1 | . . . . . . . . . . . . 1 . . Repair Stations . | . . . . . . . . . . . . . . . Recycling Units 7 | . 1 . . 1 5 . . . . . . . . . Scanalyzers 1 | . . . 1 . . . . . . . . . . . Garrison Access 1 | . . . . . . . . . . . 1 . . . Total Hacks 187 | . 34 . 39 20 26 12 8 22 7 . 10 7 . 2 Successful 91 | . 14 . 22 11 17 12 2 8 2 . 2 1 . . Failed 96 | . 20 . 17 9 9 . 6 14 5 . 8 6 . 2 Catastrophic 23 | . 1 . 2 2 . . 5 5 3 . 4 1 . . Database Lockouts . | . . . . . . . . . . . . . . . Manual 112 | . 32 . 25 12 27 . 5 1 1 . 6 3 . . Terminals 159 | . 32 . 38 19 20 . 8 22 7 . 9 2 . 2 Fabricators 5 | . . . . . . . . . . . . 5 . . Repair Stations . | . . . . . . . . . . . . . . . Recycling Units 9 | . 2 . . 1 6 . . . . . . . . . Scanalyzers 1 | . . . 1 . . . . . . . . . . . Garrison Access 1 | . . . . . . . . . . . 1 . . . Terminal Hacks 48 | . 7 . 10 5 2 12 . 8 2 . 2 . . . Record 7 | . . . . . . 5 . . 2 . . . . . Part Schematic 1 | . . . . . . . . . . . 1 . . . Robot Analysis 16 | . 4 . 4 . . 6 . 2 . . . . . . Prototype ID Bank 4 | . 1 . 1 1 1 . . . . . . . . . Open Door 8 | . . . . 3 . . . 5 . . . . . . Branch Access Points 1 | . . . . . . . . . . . 1 . . . Alert Level 1 | . . . 1 . . . . . . . . . . . Unreport Threat 2 | . . . 1 1 . . . . . . . . . . Locate Traps 4 | . 1 . 2 . . . . 1 . . . . . . Registered Components 2 | . 1 . . . 1 . . . . . . . . . Zone Layout 1 | . . . 1 . . . . . . . . . . . Proto ID Catalog 1 | . . . . . . 1 . . . . . . . . Fabricator Hacks 1 | . . . . . . . . . . . . 1 . . Build 1 | . . . . . . . . . . . . 1 . . Repair Station Hacks . | . . . . . . . . . . . . . . . Recycling Unit Hacks 1 | . . . . 1 . . . . . . . . . . Retrieve Matter 1 | . . . . 1 . . . . . . . . . . Scanalyzer 1 | . . . 1 . . . . . . . . . . . Insert Component 1 | . . . 1 . . . . . . . . . . . Garrison Access Hacks . | . . . . . . . . . . . . . . . Unauthorized Hacks 40 | . 7 . 11 5 15 . 2 . . . . . . . Terminals 34 | . 6 . 11 5 10 . 2 . . . . . . . Assimilate 2 | . . . 2 . . . . . . . . . . . Botnet 9 | . 1 . 3 1 3 . 1 . . . . . . . Operators 3 | . . . 1 . 1 . 1 . . . . . . . Skim 20 | . 5 . 5 4 6 . . . . . . . . . Fabricators . | . . . . . . . . . . . . . . . Repair Stations . | . . . . . . . . . . . . . . . Recycling Units 6 | . 1 . . . 5 . . . . . . . . . Recyclers 1 | . 1 . . . . . . . . . . . . . Tunnel 5 | . . . . . 5 . . . . . . . . . Scanalyzers . | . . . . . . . . . . . . . . . Garrison Access . | . . . . . . . . . . . . . . . Data Cores Recovered 1 | . . . . . . . . . . . 1 . . . Used . | . . . . . . . . . . . . . . . Hacking Detections 54 | . 9 . 10 5 6 . 5 9 2 . 5 2 . 1 Full Trace Events 6 | . . . . 1 1 . 1 2 . . 1 . . . Feedback Events 1 | . . . . . . . 1 . . . . . . . Corruption 1 | . . . . . . . 1 . . . . . . . Feedback Blocked . | . . . . . . . . . . . . . . . Robot Schematics Acquired . | . . . . . . . . . . . . . . . Robots Built . | . . . . . . . . . . . . . . . Authchips . | . . . . . . . . . . . . . . . Time . | . . . . . . . . . . . . . . . Total Robot Build Rating . | . . . . . . . . . . . . . . . Part Schematics Acquired 1 | . . . . . . . . . . . 1 . . . Parts Built 2 | . . . . . . . . . . . . 2 . . Authchips . | . . . . . . . . . . . . . . . Time 128 | . . . . . . . . . . . . 128 . . Total Part Build Rating 16 | . . . . . . . . . . . . 16 . . Parts Repaired . | . . . . . . . . . . . . . . . Time . | . . . . . . . . . . . . . . . Parts Recycled . | . . . . . . . . . . . . . . . Recycled Matter . | . . . . . . . . . . . . . . . Retrieved Matter 122 | . . . . 122 . . . . . . . . . . Retrieved Components . | . . . . . . . . . . . . . . . Parts Scanalyzed . | . . . . . . . . . . . . . . . Part Schematics Acquired . | . . . . . . . . . . . . . . . Parts Damaged . | . . . . . . . . . . . . . . . Bothacking | -11 -10 -10 -9 -9 -9 -9 -6 -6 -6 -6 -6 -5 -4 -4 ------------ Run | Yrd Mat Min Mat Sto Rec Scr Fac Ext Cet Arc Hub Fac Fac Arm Used RIF Installer . | . . . . . . . . . . . . . . . Robots Hacked . | . . . . . . . . . . . . . . . Non-combat . | . . . . . . . . . . . . . . . Combat . | . . . . . . . . . . . . . . . Robot Hacks Applied . | . . . . . . . . . . . . . . . Relay Couplers Released . | . . . . . . . . . . . . . . . Fabnet Peak Effective % . | . . . . . . . . . . . . . . . Robots Rewired 21 | . . . . . . . . 13 . . . . . 8 Allies Hacked . | . . . . . . . . . . . . . . . Hacks Repelled . | . . . . . . . . . . . . . . . Allies | -11 -10 -10 -9 -9 -9 -9 -6 -6 -6 -6 -6 -5 -4 -4 -------- Run | Yrd Mat Min Mat Sto Rec Scr Fac Ext Cet Arc Hub Fac Fac Arm Total Allies 33 | . . . . . . . . 20 5 . . . . 8 Largest Group 11 | . . . . . . . . 11 9 9 6 . . 8 Highest-Rated Group 731 | . . . . . . . . 462 731 731 519 . . 314 Highest-Rated Ally 159 | . . . . . . . . 159 153 153 96 . . 50 Total Orders . | . . . . . . . . . . . . . . . Ally Attacks 255 | . . . . . . . . 140 26 15 56 . . 18 Total Damage 7536 | . . . . . . . . 3036 630 544 2529 . . 797 Kills 43 | . . . . . . . . 18 4 3 16 . . 2 Allies Corrupted . | . . . . . . . . . . . . . . . Allies Melted 1 | . . . . . . . . . . . . . . 1 Intel | -11 -10 -10 -9 -9 -9 -9 -6 -6 -6 -6 -6 -5 -4 -4 ------- Run | Yrd Mat Min Mat Sto Rec Scr Fac Ext Cet Arc Hub Fac Fac Arm Active Infowar (turns) 4235 | 40 808 . . . . . 840 1416 . . . 408 425 298 Sensors 3387 | . . . . . . . 840 1416 . . . 408 425 298 Seismic 848 | 40 808 . . . . . . . . . . . . . Robot Analysis Total 16 | . 4 . 4 . . 6 . 2 . . . . . . Derelict Logs Recovered . | . . . . . . . . . . . . . . . Drone Launches . | . . . . . . . . . . . . . . . Drone Recoveries . | . . . . . . . . . . . . . . . Exploration | -11 -10 -10 -9 -9 -9 -9 -6 -6 -6 -6 -6 -5 -4 -4 ------------- Run | Yrd Mat Min Mat Sto Rec Scr Fac Ext Cet Arc Hub Fac Fac Arm Turns Passed 18018 | 175 1328 454 2790 2333 1555 2916 845 1946 696 141 873 949 586 431 Spaces Moved 7809 | 79 630 173 1093 806 602 1270 546 964 335 71 318 433 263 226 Core 106 | 2 . . . . . . . . . . . . . 104 Treads 6880 | 77 630 173 1093 806 602 1149 41 767 335 71 318 433 263 122 Legs . | . . . . . . . . . . . . . . . Wheels 823 | . . . . . . 121 505 197 . . . . . . Hover . | . . . . . . . . . . . . . . . Flight . | . . . . . . . . . . . . . . . Fastest Speed 50 | 50 160 240 160 240 160 120 116 101 156 160 155 152 155 50 Average Speed 187 | 157 184 240 208 240 177 228 133 156 158 160 157 155 159 141 Slowest Speed 240 | 160 240 240 240 240 240 240 240 235 160 160 160 160 235 240 Overloaded Moves . | . . . . . . . . . . . . . . . Propulsion Burnouts . | . . . . . . . . . . . . . . . Robots Hopped . | . . . . . . . . . . . . . . . Potential Cave-ins . | . . . . . . . . . . . . . . . Cave-ins Triggered . | . . . . . . . . . . . . . . . Exploration Rate (%) 57 | 4 95 34 93 97 98 91 14 87 79 76 41 13 12 25 Regions Visited 14 Branch Regions 9 Pre-discovered Areas 8 | . . . 2 . 6 . . . . . . . . . Known Exits Taken 9 | . . 1 1 . . . 1 1 1 1 1 1 1 . Unknown Exits Taken 5 | 1 1 . . 1 1 1 . . . . . . . . Scrap Searched 5 | . . 1 . . . 4 . . . . . . . . Spaces Dug 31 | . . . 3 7 . . 6 . . . . 4 9 2 Terrain Destroyed 195 | . . . 3 25 . . 6 11 3 4 69 44 28 2 Melee 23 | . . . 2 . . . 6 . . . . 4 9 2 Projectile 87 | . . . 1 . . . . 11 3 4 46 17 5 . AOE 85 | . . . . 25 . . . . . . 23 23 14 . Terrain Rammed . | . . . . . . . . . . . . . . . Walls Destroyed . | . . . . . . . . . . . . . . . Machines Disabled . | . . . . . . . . . . . . . . . Actions | -11 -10 -10 -9 -9 -9 -9 -6 -6 -6 -6 -6 -5 -4 -4 --------- Run | Yrd Mat Min Mat Sto Rec Scr Fac Ext Cet Arc Hub Fac Fac Arm Total 10130 | 104 737 193 1428 1046 1070 1280 613 1304 478 88 522 583 352 332 Wait 1184 | 3 52 10 160 101 447 . 18 143 91 9 95 42 13 . Move 7795 | 78 629 172 1092 805 601 1269 545 963 334 70 317 432 262 226 Hop . | . . . . . . . . . . . . . . . Pick Up 97 | 2 15 1 18 9 . 2 6 13 9 2 1 11 5 3 Fast Attach 19 | 6 . . . . . . . 2 3 . 1 5 2 . Attach 43 | 1 . . 5 2 . . 6 2 . 1 2 13 8 3 Detach 1 | . . . . . . . . . . . . 1 . . Swap 173 | 2 4 . 31 24 5 7 13 24 10 . 22 17 10 4 Drop 98 | . 2 . 24 17 3 2 2 17 16 . . 3 1 11 Fire 468 | 12 28 9 79 81 6 . 16 45 15 4 83 50 39 1 Melee 37 | . . . 4 2 . . 7 . . . . 8 12 4 Ram 2 | . . . . . . . . . . . . . . 2 Kick . | . . . . . . . . . . . . . . . Crush 35 | . 7 1 8 5 8 . . 2 . 2 1 1 . . Escape Stasis . | . . . . . . . . . . . . . . . Rewire 171 | . . . . . . . . 93 . . . . . 78 Trap . | . . . . . . . . . . . . . . . Miscellaneous 7 | . . . 7 . . . . . . . . . . . Route ------- -11/Scrapyard -10/Materials (discovered 6 exits: *Mat x3 / [*Min x2] / Sub) -10/Mines (discovered 4 exits: *Mat x2 / Exi / Sub) -9/Materials (discovered 6 exits: *Mat x3 / [*Min] / *Sto x2) -9/Storage (discovered 2 exits: *Mat / *Rec) -9/Recycling (discovered 2 exits: *Fac / *Scr) -9/Scraptown (discovered 2 exits: *Fac x2) -6/Factory (discovered 2 exits: *Low / *Ext) -6/Extension (discovered 2 exits: *Fac / *Cet) -6/Cetus (discovered 2 exits: *Fac / *Arc) -6/Archives (discovered 3 exits: *Fac / *Hub x2) -6/Hub_04(d) -5/Factory -4/Factory -4/Armory History --------- Turn | Location | Event 15 | -11/Scrapyard | Discovered new exit (range 15) 176 | -11/Scrapyard | Entered Materials 176 | -10/Materials | Discovered new exit (range 8) 247 | -10/Materials | Discovered new exit (range 16) 318 | -10/Materials | Build established: Mutant 580 | -10/Materials | Discovered new exit (range 16) 660 | -10/Materials | Discovered new exit (range 9) 876 | -10/Materials | Derelicts attacked the area 879 | -10/Materials | Discovered new exit (range 14) 948 | -10/Materials | Learned location of 1 exit from Recycling 1006 | -10/Materials | Learned Materials stockpile data 1022 | -10/Materials | Learned 4 Recycling zone layouts 1027 | -10/Materials | Identified exit to Subcaves 1027 | -10/Materials | Learned location of 1 exit from Materials 1042 | -10/Materials | Learned location of 2 exits from Materials 1104 | -10/Materials | Learned location of 2 exits from Mines 1504 | -10/Materials | Entered Mines 1505 | -10/Mines | Identified exit to Materials 1506 | -10/Mines | Identified exit to Exiles 1745 | -10/Mines | Core integrity fell below 50% 1958 | -10/Mines | Entered Materials 1958 | -9/Materials | Evolved 2 slots: Propulsion x1, Utility x1 1959 | -9/Materials | Identified exit to Storage 1960 | -9/Materials | Identified exit to Materials 2664 | -9/Materials | Discovered exit to Materials (range 16) 3305 | -9/Materials | Discovered new exit (range 13) 4081 | -9/Materials | Learned Materials stockpile data 4115 | -9/Materials | Learned location of Storage (-9) 4158 | -9/Materials | Learned Storage emergency access door positions 4748 | -9/Materials | Entered Storage 7068 | -9/Storage | Used back door to open Recycling access 7068 | -9/Storage | Discovered new exit (range 5) 7081 | -9/Storage | Entered Recycling 7082 | -9/Recycling | Identified exit to Factory 7458 | -9/Recycling | Build established: Scavenger-Mutant 8024 | -9/Recycling | Learned Materials trap positions 8097 | -9/Recycling | Learned Storage stockpile data 8254 | -9/Recycling | Learned 2 Materials zone layouts 8256 | -9/Recycling | Build established: Mutant 8286 | -9/Recycling | Learned Materials trap positions 8307 | -9/Recycling | Learned location of 2 exits from Materials 8340 | -9/Recycling | Learned 8 Materials zone layouts 8385 | -9/Recycling | Learned 4 Materials zone layouts 8442 | -9/Recycling | Learned 4 Recycling zone layouts 8578 | -9/Recycling | Scanned before Scraplab entrance 8612 | -9/Recycling | Entered Scraplab 8631 | -9/Recycling | Discovered new exit (range 3) 8636 | -9/Recycling | Entered Scraptown 9024 | -9/Scraptown | Visited Fellowship of the Rings 9058 | -9/Scraptown | Visited CPS Storage 9298 | -9/Scraptown | Heard Great Nut preacher, LISTEN AND RECITE! 9573 | -9/Scraptown | Discovered new exit (range 7) 9808 | -9/Scraptown | Visited Comm Corps 9847 | -9/Scraptown | Visited Awakened 9974 | -9/Scraptown | Visited Symbiants 9998 | -9/Scraptown | Visited Cave Peace 10096 | -9/Scraptown | Visited UFD Registry 10096 | -9/Scraptown | Registered with UFD as "Softripper" 10178 | -9/Scraptown | Visited Chapter 10 10252 | -9/Scraptown | Visited Scrapoid Research Area 10329 | -9/Scraptown | Visited Research Penetration Think Tank 10384 | -9/Scraptown | Visited Abandonware Association 10408 | -9/Scraptown | Learned abandonware demo "TRNCOAT.EXE" 10519 | -9/Scraptown | Visited Infowarlord's Domain 10536 | -9/Scraptown | Found Exp. Sensor Array 10580 | -9/Scraptown | Visited Scrap Suit Storage 10659 | -9/Scraptown | Visited Science Guys 10743 | -9/Scraptown | Visited Analyses Database 11543 | -9/Scraptown | Discovered new exit (range 5) 11552 | -9/Scraptown | Entered Factory 11552 | -6/Factory | Evolved 6 slots: Power x1, Propulsion x2, Utility x2, Weapon x1 11770 | -6/Factory | Discovered new exit (range 13) 11789 | -6/Factory | Identified exit to Lower Caves 12376 | -6/Factory | Discovered new exit (range 12) 12396 | -6/Factory | Identified exit to Extension 12397 | -6/Factory | Entered Extension 13175 | -6/Extension | Rescued A7 13228 | -6/Extension | Rescued a captive Derelict 13229 | -6/Extension | Rescued a captive Derelict 13357 | -6/Extension | Rescued a captive Derelict 13357 | -6/Extension | Rescued a captive Derelict 13604 | -6/Extension | Build established: Commander-Skirmisher 13715 | -6/Extension | Spotted B-75 Beast 13742 | -6/Extension | Spotted B-75 Beast 13753 | -6/Extension | Destroyed B-75 Beast 13780 | -6/Extension | Lost 5 allies 13924 | -6/Extension | Rescued a captive Derelict 13984 | -6/Extension | Rescued a captive Derelict 14147 | -6/Extension | First assault squad dispatched 14172 | -6/Extension | Disrupted transfer network 14225 | -6/Extension | Lost 5 allies 14288 | -6/Extension | Discovered new exit (range 10) 14291 | -6/Extension | Discovered new exit (range 6) 14301 | -6/Extension | Identified exit to Cetus 14319 | -6/Extension | Identified exit to Factory 14343 | -6/Extension | Entered Cetus 14343 | -6/Cetus | Accompanied by 7 allies (A7) 14348 | -6/Cetus | Acquired a Cetus Manufacturing Module code from A7 14363 | -6/Cetus | Spotted Cetus Guard 14364 | -6/Cetus | Spotted Cetus Guard 14370 | -6/Cetus | Spotted Cetus Guard 14372 | -6/Cetus | Destroyed Cetus Guard 14373 | -6/Cetus | Spotted Cetus Guard 14377 | -6/Cetus | Allies destroyed Cetus Guard 14382 | -6/Cetus | Allies destroyed Cetus Guard 14387 | -6/Cetus | Destroyed Cetus Guard 14418 | -6/Cetus | Lost 3 allies 14460 | -6/Cetus | Started Cetus Manufacturing Module 14485 | -6/Cetus | Manufactured an Enhanced Grunt 14510 | -6/Cetus | Manufactured an Enhanced Grunt 14535 | -6/Cetus | Manufactured an Enhanced Grunt 14560 | -6/Cetus | Manufactured an Enhanced Grunt 14585 | -6/Cetus | Manufactured an Enhanced Grunt 14639 | -6/Cetus | Discovered new exit (range 16) 14672 | -6/Cetus | Spotted Cetus Guard 14672 | -6/Cetus | Spotted Cetus Guard 14674 | -6/Cetus | Destroyed Cetus Guard 14675 | -6/Cetus | Spotted Cetus Guard 14677 | -6/Cetus | Destroyed Cetus Guard 14683 | -6/Cetus | Destroyed Cetus Guard 14684 | -6/Cetus | Spotted Cetus Guard 14686 | -6/Cetus | Destroyed Cetus Guard 14699 | -6/Cetus | Discovered exit to Factory (range 16) 14708 | -6/Cetus | Met Revision 17 14832 | -6/Cetus | Identified exit to Archives 14900 | -6/Cetus | Escorted A7 to Cetus Mainframe 14975 | -6/Cetus | Cetus Manufacturing Module disabled 15014 | -6/Cetus | Build established: Scavenger-Tank 15039 | -6/Cetus | Entered Archives 15039 | -6/Archives | Accompanied by 9 allies (A7) 15044 | -6/Archives | Received a hacking code to weaken MAIN.C 15088 | -6/Archives | Discovered exit to Factory (range 14) 15130 | -6/Archives | Discovered new exit (range 15) 15144 | -6/Archives | Discovered new exit (range 16) 15167 | -6/Archives | Identified exit to Hub_04(d) 15180 | -6/Archives | Entered Hub_04(d) 15180 | -6/Hub_04(d) | Accompanied by 6 allies 15277 | -6/Hub_04(d) | Lost 3 allies 15380 | -6/Hub_04(d) | Garrison activated, responded to threat 15413 | -6/Hub_04(d) | Lost 3 allies 15418 | -6/Hub_04(d) | Destroyed 7 combat bots 15590 | -6/Hub_04(d) | Garrison activated, responded to threat 16031 | -6/Hub_04(d) | Discovered exit to Factory (range 15) 16053 | -6/Hub_04(d) | Entered Factory 16053 | -5/Factory | Evolved 2 slots: Utility x1, Weapon x1 16353 | -5/Factory | First assault squad dispatched 16421 | -5/Factory | Fabricated Biometal Medium Treads? 16545 | -5/Factory | Destroyed 7 combat bots 16598 | -5/Factory | Lost 4 parts (1p1n1u1w) 16774 | -5/Factory | Lost 7 parts (2p1n2u2w) 16883 | -5/Factory | Discovered new exit (range 5) 16897 | -5/Factory | Identified exit to Factory 17002 | -5/Factory | Entered another Factory area 17002 | -4/Factory | Evolved 2 slots: Utility x2 17191 | -4/Factory | Build established: Scavenger-Gunner 17464 | -4/Factory | Discovered new exit (range 16) 17554 | -4/Factory | Lost 12 parts (2p4n4u2w) 17586 | -4/Factory | Identified exit to Armory 17588 | -4/Factory | Entered Armory 17971 | -4/Armory | Lost 7 allies 18004 | -4/Armory | Core integrity fell below 50% 18012 | -4/Armory | Core integrity fell below 20% 18019 | -4/Armory | Destroyed by G-67 Veteran with Plasma Rifle Last Messages --------------- 17967_ Armor Integrity Analyzer temporarily disabled. 17968_ W-44 Eye sends out distress signal. 17975_ Door malfunctions. 17976_ Penetrated by Slug. 17978_ Warrior 7c heat damages Hvy. Mace, Broken Imp. Treads. 17980_ Warrior 7c heat damages Hvy. Mace. 17981_ Warrior 7c heat spikes uncontrollably. 17984_ Penetrated by Slug. 17984_ Exp. Sensor Array destroyed. 17986_ Component Storage disabled. 17986_ Slug penetrates Wall. 18002_ Slammed into H-77 Assassin. 18002_ Destabilizing: Core damaged (-11). 18003_ Penetrated by Slug. 18003_ Slug penetrates Wall. 18004_ Penetrated by Slug. 18004_ Slug penetrates Wall. 18005_ Component Storage disabled. 18005_ Critical hit (Burn: +50). 18007_ Penetrated by Slug. Map ----- +----------------------------------------------------+ | ??????????????????????????????????????????# | | ?????????????????????????????????????????#" % | | ????????????????????????????????????????? " | | ????????????????????????????????????????# " | | ????????????????????????????????????????# " % | | ????????????????????????????????????????# /%=== | | ????????????????????????????????????????# /%[%[ "" | | ????????????????????????????????????????##"!!%[""" | | ?????????????????????????????????????????##[!="""" | | ??????????????????????????????????????????#%! | | ??????????????????????????????????????????# | | ?????????????????????????????????????????"" """"" | | ???????????????????????????????????????#"F" """"" | | ???????????????????????????????????????#" """"" | | ????????????????????????????????????????""" | | ????????????????????????????????????????""" | | ??????????????????????????????????#####?### """" | | ??????????????????????############# ##### """"" | | ??????????????????????# """"" | | ??????????????????????# | | ??????????????????????# | | ???????????#+########## """"" | | ??????????? ^g """"" | | ???????????# g d """ | | ???????????# | | ???????????# @ | | ?????????????????#+##############+# ######## | | ??????????????????????????????# ## ##??????# | | ??????????????????????????????# #?###???????# | | ??????????????????????????????#[ """#???????????# | | ??????????????????????????????# """#???????????# | | ??????????????????????????????# ! """#???????????# | | ????????????H?????????????????# #???????????# | | ??????????????????????????????########???????????? | | ?????????????????????????????????????????????????? | | ?????????????????????????????????????????????????? | | ?????????????????????????????????????????????????? | | ?????????????????????????????????????????????????? | | ?????????????????????????????????????????????????? | | ?????????????????????????????????????????????????? | | ?????????????????????????????????????????????????? | | ?????????????????????????????????????????????????? | | ?????????????????????????????????????????????????? | | ?????????????????????????????????????????????????? | | ?????????????????????????????????????????????????? | | ?????????????????????????????????????????????????? | | ?????????????????????????????????????????????????? | | ?????????????????????????????????????????????????? | | ?????????????????????????????????????????????????? | | ?????????????????????????????????????????????????? | +----------------------------------------------------+ Best States ------------- Heat Dissipation 119 Energy Generation 41 Energy Capacity 550 Matter Stores 300 Matter Capacity 300 Sight Range 16 Robot Scan Range 20 Terrain Scan Density 10 Base Temperature (-) 200 Armor Coverage 600 Evasion (%) 50 Targeting Accuracy 6 Armor Integrity Analysis 30 Recoil Reduction 5 Offensive Hacking 10 Item Schematics ----------------- Imp. Particle Charger | -6/Hub_04(d) | Hacked Robot Schematics ------------------ None Fabricated ------------ Biometal Medium Treads | x2 | -5/Factory | Preloaded Repaired ---------- Nothing Alien Tech Used ----------------- None Achievements -------------- None Challenges ------------ None Game ------ Seed ElectrostormThermalJammer Manual? 0 Play Time 02:06:57 Cumulative 161.5 hours Start 2025.08.01 @ 17:05:43 End 2025.08.01 @ 19:11:49 Sessions 1 Manual Loads 0 Difficulty Rogue Special Mode None Game No. 145 Rogue 145 Adventurer 0 Explorer 0 Win Type - Total 2 Types 2/0/0/0/0/0/0/0/0/0 Lore% 72 Gallery% 64 Achievement% 56 Wizard Run 0 Options --------- Layout 0 ASCII 0 Keyboard 1 Movement Numpad Keybinds 0 Fullscreen 1 Font 24/Terminus Map View 76x50 Zoom Use 0% Tactical HUD 1 Map Filters NONE Filters NONE Steam 1 RUN: af9795c1-224f-4126-8c6d-15b986af830f